bitfinex/quotes_BTCUSD_20240906
["timestamp","ask_amount","ask_price","bid_price","bid_amount"]
[1725631348289,0.00081,56021.0,56020.0,2.79960143]
[1725631348538,0.00081,56021.0,56020.0,2.85448643]
[1725631348783,0.00081,56021.0,56020.0,2.84048643]
[1725631349025,0.00081,56021.0,56020.0,2.37976351]
[1725631349262,0.00181,56021.0,56020.0,2.38376351]
[1725631349486,0.00081,56021.0,56020.0,3.18750143]
[1725631349744,0.00181,56021.0,56020.0,3.20150143]
[1725631350217,0.00081,56021.0,56020.0,3.54451643]
[1725631350442,0.00181,56021.0,56020.0,3.57851643]
[1725631350707,0.00081,56021.0,56020.0,3.56451643]
[1725631350966,1e-06,56021.0,56020.0,3.56451643]
[1725631351193,0.00081,56031.0,56030.0,1.97323]
[1725631351423,0.00081,56031.0,56030.0,3.01456388]
[1725631351669,0.00081,56031.0,56030.0,2.65761288]
[1725631351894,0.00081,56031.0,56030.0,2.64761288]
[1725631352137,0.00081,56031.0,56030.0,2.65761288]
[1725631352372,0.998262,56047.0,56046.0,0.535273]
[1725631352622,0.998262,56047.0,56046.0,0.35393496]
[1725631353010,0.998262,56047.0,56046.0,0.35340946]
[1725631353232,0.998262,56047.0,56040.0,0.356883]
[1725631353455,0.998262,56047.0,56030.0,0.77205]
[1725631353456,0.998262,56047.0,56038.0,0.356896]
[1725631353654,0.998262,56047.0,56039.0,0.35395596]
[1725631353655,0.178434,56043.0,56039.0,0.35395596]
[1725631353917,0.1664,56046.0,56039.0,0.17551096]
[1725631354068,0.1664,56046.0,56042.0,0.178437]
[1725631354280,0.1664,56046.0,56043.0,0.17551096]
[1725631354502,0.1664,56046.0,56025.0,0.539882]
[1725631354704,0.178434,56043.0,56039.0,0.178445]
[1725631354915,0.1345,56045.0,56039.0,0.17551096]
[1725631355317,0.178437,56042.0,56039.0,0.35395696]
[1725631355755,0.1345,56045.0,56042.0,0.178435]
[1725631355966,0.1345,56045.0,56036.0,0.35691]
[1725631355967,0.1664,56046.0,56043.0,0.1790793]
[1725631356167,0.998262,56047.0,56046.0,0.535273]
[1725631356378,0.998262,56047.0,56046.0,0.73378396]
[1725631356585,0.998262,56047.0,56046.0,0.37693496]
[1725631356864,1.176683,56047.0,56046.0,0.17551096]
[1725631357067,1.176683,56047.0,56043.0,0.178433]
[1725631357068,1.176684,56047.0,56042.0,0.357871]
[1725631357282,1.176684,56047.0,56044.0,0.17843]
[1725631357450,1.176684,56047.0,56036.0,0.356911]
[1725631357451,0.998262,56047.0,56036.0,0.356911]
[1725631357746,0.998262,56047.0,56024.0,0.66700515]
[1725631357747,0.1644,56035.0,56021.0,0.52650515]
[1725631357960,0.1644,56035.0,56029.0,0.356952]
[1725631358164,0.1644,56035.0,56031.0,0.356944]
[1725631358300,0.1644,56035.0,56034.0,0.535389]
[1725631358507,0.1644,56041.0,56034.0,0.17551096]
[1725631358679,0.002,56043.0,56036.0,0.356908]
[1725631358917,0.002,56043.0,56042.0,0.178437]
[1725631359134,0.1392,56045.0,56022.0,0.01]
[1725631359135,0.002,56044.0,56022.0,0.01]
[1725631359357,0.002,56044.0,56038.0,0.356896]
[1725631359358,0.178435,56043.0,56038.0,0.356896]
[1725631359578,0.178435,56043.0,56036.0,0.35691]
[1725631359579,0.002,56044.0,56039.0,0.178446]
[1725631359795,0.002,56041.0,56026.0,0.356974]
[1725631360034,0.002,56041.0,56031.0,0.35694]
[1725631360035,0.356889,56040.0,56031.0,0.35694]
[1725631360281,0.002,56044.0,56032.0,0.17551096]
[1725631360520,0.004,56044.0,56033.0,0.02656842]
[1725631360739,0.004,56044.0,56040.0,0.178442]
[1725631360740,0.178431,56044.0,56040.0,0.178442]
[1725631360958,0.006,56041.0,56040.0,0.17551096]
[1725631361424,0.180435,56043.0,56040.0,0.17551096]
[1725631361643,0.356875,56042.0,56035.0,0.178457]
[1725631361878,0.002,56032.0,56020.0,0.5]
[1725631362111,0.178504,56021.0,56020.0,0.5]
[1725631362361,1.06462,56021.0,56020.0,0.5]
[1725631362585,1.60115792,56021.0,56020.0,0.5]
[1725631362818,2.13372618,56021.0,56020.0,0.5]
[1725631363065,2.14372618,56021.0,56020.0,0.3539]
[1725631363305,1.61206993,56021.0,56020.0,0.3599]
[1725631363530,1.60115792,56021.0,56020.0,0.3599]
[1725631363777,1.60115792,56021.0,56020.0,0.3539]
[1725631364063,1.78271818,56021.0,56020.0,0.356528]
[1725631364303,1.96816592,56021.0,56020.0,0.355528]
[1725631364547,1.96816592,56021.0,56020.0,0.356528]
[1725631364548,1.97416592,56021.0,56020.0,0.356528]
[1725631364767,1.96416592,56021.0,56020.0,0.356528]
[1725631365008,1.96416592,56021.0,56016.0,0.0002149]
[1725631365009,1.618653,56017.0,56016.0,0.0002149]
[1725631365371,1.9217905,56017.0,56016.0,0.0002149]
[1725631365570,2.0217905,56017.0,56016.0,0.0002149]
[1725631366166,2.0317905,56017.0,56016.0,0.0002149]
[1725631366377,0.904745,56007.0,56006.0,0.001628]
[1725631366572,0.1672,55990.0,55985.0,0.178618]
[1725631366805,0.1672,55990.0,55976.0,0.1336]
[1725631366806,0.703009,55990.0,55976.0,0.1336]
[1725631367011,0.345804,55990.0,55984.0,0.178619]
[1725631367234,0.345804,55990.0,55975.0,0.05]
[1725631367235,0.1672,55990.0,55975.0,0.05]
[1725631367628,0.1672,55990.0,55987.0,0.178611]
[1725631367879,0.1707,56000.0,55988.0,0.17551096]
[1725631368081,0.002,55996.0,55978.0,0.1362]
[1725631368312,0.002,55992.0,55979.0,0.17908282]
[1725631368521,0.002,55992.0,55982.0,0.357255]
[1725631368756,0.1648,55991.0,55980.0,0.35727]
[1725631368974,0.002,55990.0,55985.0,0.178617]
[1725631369230,0.002,55990.0,55981.0,0.17551096]
[1725631369231,0.008,55990.0,55989.0,0.178606]
[1725631369440,0.1648,55991.0,55989.0,0.178606]
[1725631369441,0.1648,55991.0,55990.0,0.178603]
[1725631369682,0.002,55994.0,55975.0,0.407295]
[1725631369683,0.178605,55990.0,55975.0,0.05]
[1725631369889,0.002,55986.0,55983.0,0.178625]
[1725631370149,0.178643,55978.0,55975.0,0.05]
[1725631370354,0.20976919,55985.0,55975.0,0.05]
[1725631370542,0.535942,55976.0,55975.0,0.05]
[1725631370841,0.704842,55976.0,55975.0,0.05]
[1725631371056,1.46373717,55976.0,55975.0,0.05]
[1725631371279,1.61011089,55976.0,55975.0,0.05]
[1725631371500,1.25281589,55976.0,55975.0,0.05]
[1725631371756,1.10644217,55976.0,55975.0,0.05]
[1725631372017,0.706842,55976.0,55975.0,0.05]
[1725631372230,0.002,55980.0,55975.0,0.05]
[1725631372463,0.002,55978.0,55975.0,0.05]
[1725631372686,0.178646,55977.0,55975.0,0.05]
[1725631372940,0.847742,55976.0,55975.0,0.05]
[1725631373161,1.61463717,55976.0,55975.0,0.05]
[1725631373592,1.62563717,55976.0,55975.0,0.05]
[1725631373823,2.14749243,55976.0,55975.0,0.05]
[1725631374037,2.14749243,55976.0,55967.0,0.00163]
[1725631374038,1.262714,55968.0,55967.0,0.00163]
[1725631374276,2.4258659,55968.0,55967.0,0.00163]
[1725631374531,1.262802,55964.0,55963.0,0.00162]
[1725631374769,1.58612253,55964.0,55963.0,0.00162]
[1725631374977,1.76168279,55964.0,55963.0,0.00162]
[1725631375190,1.21875053,55964.0,55963.0,0.00162]
[1725631375403,0.86137853,55964.0,55963.0,0.00162]
[1725631375651,0.45079137,55964.0,55963.0,0.00162]
[1725631375870,1.34422137,55964.0,55963.0,0.00162]
[1725631376085,0.98684937,55964.0,55963.0,0.00162]
[1725631376738,1.50007632,55964.0,55963.0,0.00162]
[1725631376980,1.60007632,55964.0,55963.0,0.00162]
[1725631377221,1.60007632,55964.0,55959.0,0.00162]
[1725631377222,0.01,55960.0,55959.0,0.00162]
[1725631377425,1.76034523,55960.0,55959.0,0.00162]
[1725631377681,1.86034523,55960.0,55959.0,0.00162]
[1725631377960,1.71183992,55950.0,55949.0,0.00162]
[1725631378210,1.35445492,55945.0,55944.0,0.00162]
[1725631378447,2.21669576,55945.0,55944.0,0.00162]
[1725631378695,1.804277,55943.0,55942.0,0.00163]
[1725631378933,4.16133836,55943.0,55942.0,0.00163]
[1725631379173,2.60442492,55934.0,55922.0,0.00163]
[1725631379408,2.29587341,55934.0,55922.0,0.00163]
[1725631379637,2.93734947,55934.0,55922.0,0.00163]
[1725631379909,2.53617341,55934.0,55922.0,0.00163]
[1725631380143,2.16860941,55934.0,55922.0,0.00163]
[1725631380379,0.40489449,55934.0,55924.0,0.139]
[1725631380639,0.41889449,55934.0,55924.0,0.139]
[1725631380866,0.014,55934.0,55925.0,0.00357602]
[1725631381102,0.014,55934.0,55933.0,0.180405]
[1725631381347,0.028,55934.0,55933.0,0.00162]
[1725631381820,0.028,55934.0,55933.0,0.180405]
[1725631382063,0.014,55934.0,55933.0,1.77542596]
[1725631382313,0.014,55934.0,55933.0,2.14299596]
[1725631382314,0.00692677,55934.0,55933.0,2.14299596]
[1725631382567,0.178731,55950.0,55949.0,0.1665]
[1725631382820,0.10138442,55963.0,55953.0,0.178721]
[1725631383060,0.10138442,55963.0,55957.0,0.357413]
[1725631383303,0.10138442,55963.0,55953.0,0.1352]
[1725631383571,0.10138442,55963.0,55959.0,0.178702]
[1725631383802,0.10138442,55963.0,55959.0,0.178699]
[1725631384051,0.10138442,55963.0,55960.0,0.178698]
[1725631384302,0.10138442,55963.0,55962.0,0.178692]
[1725631384565,0.10138442,55963.0,55953.0,0.1352]
[1725631384813,0.178703,55959.0,55953.0,0.1352]
[1725631385053,0.178703,55959.0,55951.0,0.357449]
[1725631385054,0.04541803,55958.0,55944.0,0.178749]
[1725631385305,0.04669574,55962.0,55945.0,0.17551096]
[1725631385539,0.357411,55958.0,55945.0,0.17551096]
[1725631385776,0.04669574,55962.0,55941.0,0.1427]
[1725631385777,0.89359,55954.0,55953.0,0.001]
[1725631386019,0.22453527,55954.0,55953.0,0.001]
[1725631386268,0.58197127,55954.0,55953.0,0.001]
[1725631386516,0.22453527,55954.0,55953.0,0.001]
[1725631386767,0.1758,55956.0,55946.0,0.357483]
[1725631387009,0.3173,55962.0,55944.0,0.001]
[1725631387260,0.707639,55945.0,55944.0,0.001]
[1725631387514,0.178782,55934.0,55933.0,0.00162]
[1725631387986,0.89391,55934.0,55933.0,0.00162]
[1725631388229,0.1714,55945.0,55936.0,0.357547]
[1725631388471,0.178732,55950.0,55937.0,0.1771]
[1725631388705,0.178734,55949.0,55945.0,0.178746]
[1725631388952,0.1753,55951.0,55938.0,0.31478594]
[1725631389174,0.357487,55947.0,55940.0,0.178762]
[1725631389440,0.357487,55947.0,55937.0,0.1771]
[1725631389441,0.04741461,55947.0,55933.0,0.00162]
[1725631389655,0.536278,55941.0,55940.0,0.001628]
[1725631389905,0.04741461,55947.0,55940.0,0.001628]
[1725631390147,0.357434,55955.0,55940.0,0.001628]
[1725631390148,0.76657191,55941.0,55940.0,0.001628]
[1725631390378,1.12409091,55941.0,55940.0,0.001628]
[1725631391120,1.61440991,55941.0,55940.0,0.001628]
[1725631391603,0.536278,55941.0,55940.0,0.001628]
[1725631391821,0.893797,55941.0,55940.0,0.001628]
[1725631392061,0.536278,55941.0,55940.0,0.001628]
[1725631393006,0.893797,55941.0,55940.0,0.001628]
[1725631393509,0.94169091,55941.0,55940.0,0.001628]
[1725631394013,1.42873666,55941.0,55940.0,0.001628]
[1725631394249,1.29920991,55941.0,55940.0,0.001628]
[1725631394485,0.62912292,55944.0,55940.0,0.001628]
[1725631394486,0.1784,55944.0,55940.0,0.001628]
[1725631394726,0.178739,55948.0,55944.0,0.178748]
[1725631394945,0.178728,55951.0,55942.0,0.143]
[1725631395176,0.04693535,55951.0,55942.0,0.143]
[1725631395417,0.1787,55957.0,55942.0,0.143]
[1725631395892,0.178751,55944.0,55942.0,0.143]
[1725631396147,0.45072292,55955.0,55942.0,0.143]
[1725631396356,0.178751,55944.0,55942.0,0.143]
[1725631396575,0.04669574,55953.0,55942.0,0.143]
[1725631396576,0.178753,55943.0,55942.0,0.143]
[1725631396845,0.04669574,55953.0,55940.0,0.002628]
[1725631396846,0.178759,55941.0,55940.0,0.002628]
[1725631397090,0.1734,55949.0,55940.0,0.001628]
[1725631397307,0.45864761,55954.0,55940.0,0.001628]
[1725631397538,0.10120961,55954.0,55944.0,0.357499]
[1725631397756,0.10120961,55954.0,55950.0,0.178727]
[1725631398005,0.10120961,55954.0,55952.0,0.178723]
[1725631398255,0.10120961,55954.0,55945.0,0.3045]
[1725631398498,0.178743,55946.0,55945.0,0.1338]
[1725631398715,0.178741,55947.0,55945.0,0.1338]
[1725631398937,0.178743,55947.0,55945.0,0.1338]
[1725631399159,0.357453,55952.0,55945.0,0.1338]
[1725631399432,0.357509,55943.0,55940.0,0.172328]
[1725631399717,0.04661587,55951.0,55940.0,0.002628]
[1725631399718,0.536278,55941.0,55940.0,0.002628]
[1725631399925,0.536278,55941.0,55940.0,0.001628]
[1725631400431,0.58417191,55941.0,55940.0,0.001628]
[1725631400649,1.29920991,55941.0,55940.0,0.001628]
[1725631401102,1.29920991,55941.0,55940.0,0.002628]
[1725631401353,1.84172219,55941.0,55940.0,0.001628]
[1725631401593,1.84172219,55941.0,55933.0,0.00162]
[1725631401594,0.01,55934.0,55933.0,0.00162]
[1725631401850,2.29987341,55934.0,55933.0,0.00162]
[1725631402067,2.38987341,55934.0,55933.0,0.00162]
[1725631402292,1.22402249,55934.0,55933.0,0.00162]
[1725631402526,1.67474541,55934.0,55933.0,0.00162]
[1725631402761,2.16530941,55934.0,55933.0,0.00162]
[1725631403025,1.48158649,55934.0,55933.0,0.00162]
[1725631403265,0.178782,55934.0,55933.0,0.00162]
[1725631403538,0.1817,55948.0,55933.0,0.14772]
[1725631403777,0.178782,55934.0,55933.0,0.00162]
[1725631404000,0.357552,55936.0,55933.0,0.00162]
[1725631404243,0.178782,55934.0,55933.0,0.00162]
[1725631404493,0.04789391,55947.0,55933.0,0.00162]
[1725631404737,0.178759,55942.0,55937.0,0.178771]
[1725631404975,0.357515,55942.0,55933.0,0.00262]
[1725631405199,0.178768,55939.0,55934.0,0.17878]
[1725631405445,0.04789391,55947.0,55934.0,0.357563]
[1725631405652,0.178776,55936.0,55933.0,0.00262]
[1725631405904,0.178768,55939.0,55934.0,0.17878]
[1725631406149,0.178754,55943.0,55936.0,0.178772]
[1725631406387,0.04789391,55947.0,55942.0,0.178754]
[1725631406388,0.178741,55947.0,55942.0,0.178754]
[1725631406609,0.357462,55950.0,55943.0,0.1457]
[1725631406859,0.53625,55944.0,55943.0,0.1457]
[1725631407096,0.178744,55946.0,55943.0,0.1457]
[1725631407334,0.357483,55947.0,55943.0,0.1457]
[1725631407578,0.17875,55944.0,55943.0,0.1457]
[1725631407804,0.357448,55953.0,55943.0,0.1457]
[1725631407805,0.10114264,55955.0,55954.0,0.178718]
[1725631408036,0.10114264,55955.0,55954.0,1.38780096]
[1725631408292,0.000815,55963.0,55954.0,0.49421096]
[1725631408541,0.000815,55963.0,55962.0,0.178692]
[1725631408764,0.000815,55963.0,55962.0,0.71158796]
[1725631409026,0.000815,55963.0,55962.0,0.3187]
[1725631409539,0.000815,55963.0,55962.0,1.212162]
[1725631410007,0.000815,55963.0,55962.0,1.38767296]
[1725631410722,0.000815,55963.0,55962.0,0.3187]
[1725631410944,0.000815,55963.0,55962.0,0.862777]
[1725631411172,0.000815,55963.0,55962.0,1.212162]
[1725631411607,0.000815,55963.0,55962.0,0.3187]
[1725631411829,0.000815,55963.0,55956.0,0.35742]
[1725631411830,0.000815,55963.0,55956.0,0.1375]
[1725631412062,0.000815,55963.0,55957.0,0.17551096]
[1725631412277,0.000815,55963.0,55962.0,0.178692]
[1725631412470,0.000815,55963.0,55958.0,0.1784]
[1725631412718,0.000815,55963.0,55962.0,0.547077]
[1725631412930,0.000815,55963.0,55962.0,0.178692]
[1725631413368,0.000815,55963.0,55959.0,0.53291496]
[1725631413590,0.000815,55963.0,55961.0,0.178694]
[1725631413842,0.000815,55963.0,55956.0,0.1455]
[1725631414308,0.000815,55963.0,55962.0,0.178692]
[1725631414533,0.000815,55963.0,55962.0,1.434247]
[1725631414770,0.000815,55963.0,55962.0,1.076862]
[1725631415000,0.000815,55963.0,55962.0,0.719477]
[1725631415929,0.000815,55963.0,55962.0,1.076862]
[1725631416334,0.000815,55963.0,55962.0,0.719477]
[1725631416565,0.000815,55963.0,55962.0,1.076862]
[1725631416786,0.000815,55963.0,55962.0,1.434247]
[1725631417013,0.000815,55963.0,55962.0,1.076862]
[1725631417255,0.000815,55963.0,55962.0,1.434247]
[1725631417502,0.000815,55963.0,55962.0,1.085862]
[1725631418000,0.000815,55963.0,55962.0,2.22118088]
[1725631418262,0.000815,55963.0,55962.0,2.22818088]
[1725631418505,0.000815,55963.0,55962.0,2.22318088]
[1725631418787,0.1456,55991.0,55962.0,2.22318088]
[1725631418788,0.52650515,55997.0,55967.0,0.45072292]
[1725631418978,0.52650515,55997.0,55979.0,0.357276]
[1725631418979,0.52650515,55980.0,55979.0,0.357276]
[1725631419221,0.56777319,55997.0,55979.0,0.357276]
[1725631419222,0.357188,55993.0,55985.0,0.357234]
[1725631419477,0.04126804,55997.0,55979.0,0.17551096]
[1725631419711,0.04126804,55997.0,55990.0,0.357203]
[1725631419939,0.357172,55996.0,55980.0,0.48691096]
[1725631420167,0.178585,55996.0,55980.0,0.48691096]
[1725631420409,0.39843004,55997.0,55980.0,0.48691096]
[1725631420628,0.357182,55994.0,55988.0,0.178608]
[1725631420859,0.178599,55992.0,55988.0,0.178608]
[1725631421114,0.03999188,55991.0,55980.0,0.3114]
[1725631421342,0.1709,55990.0,55980.0,0.1374]
[1725631421575,0.1709,55995.0,55980.0,0.31291096]
[1725631421848,0.45154292,56003.0,55987.0,0.1346]
[1725631421849,0.00082,56003.0,55987.0,0.1346]
[1725631422137,0.00082,56003.0,56002.0,0.178565]
[1725631422395,0.00082,56003.0,56002.0,0.892825]
[1725631424333,0.00082,56003.0,56002.0,1.44846596]
[1725631424569,0.00082,56003.0,56002.0,0.009]
[1725631424824,0.00082,56003.0,56001.0,0.1346]
[1725631425062,0.00082,56003.0,55985.0,0.01]
[1725631425063,0.00082,56003.0,55996.0,0.1403]
[1725631425313,0.00082,56003.0,56002.0,0.011]
[1725631425549,0.00082,56003.0,55978.0,0.357282]
[1725631425550,0.00082,56003.0,55991.0,0.1473]
[1725631425808,0.00082,56003.0,56002.0,0.535695]
[1725631426050,0.00082,56003.0,56002.0,1.74276596]
[1725631426545,0.528208,56022.0,56002.0,1.74276596]
[1725631426546,0.357033,56018.0,56010.0,0.178537]
[1725631426781,0.357034,56017.0,56008.0,0.357085]
[1725631427014,0.1685,56038.0,56011.0,0.17551096]
[1725631427261,0.52650515,56026.0,56010.0,0.1481]
[1725631427501,0.1358,56022.0,56004.0,0.1681]
[1725631427748,0.17854,56010.0,56005.0,0.178555]
[1725631428014,0.1358,56022.0,55999.0,0.1796]
[1725631428015,0.03720159,56009.0,55999.0,0.1796]
[1725631428257,0.03720159,56009.0,56002.0,0.014]
[1725631428258,0.535684,56003.0,56002.0,0.014]
[1725631428493,0.535684,56003.0,55992.0,0.141]
[1725631428494,0.178586,55996.0,55992.0,0.141]
[1725631428733,0.03799863,56003.0,55992.0,0.141]
[1725631428970,0.22179582,56002.0,55990.0,0.52650515]
[1725631429208,0.183,56002.0,55997.0,0.357161]
[1725631429447,0.183,56002.0,55980.0,0.1704]
[1725631429448,0.143,56007.0,55994.0,0.35718]
[1725631429682,0.143,56007.0,55990.0,0.357202]
[1725631429683,0.21686949,56006.0,55995.0,0.35717]
[1725631429922,0.01124463,56015.0,55996.0,0.3274]
[1725631429923,0.3103,56015.0,55996.0,0.3274]
[1725631430163,0.3103,56015.0,55997.0,0.17551096]
[1725631430164,0.03752039,56014.0,55997.0,0.17551096]
[1725631430453,0.3103,56015.0,55997.0,0.17551096]
[1725631430454,0.1691,56015.0,56004.0,0.178557]
[1725631430693,0.357073,56011.0,55999.0,0.178573]
[1725631430924,0.357073,56011.0,55983.0,0.01]
[1725631430925,0.178572,56000.0,55990.0,0.3219]
[1725631431164,0.1437,56005.0,55990.0,0.3219]
[1725631431165,0.535741,55997.0,55996.0,0.001]
[1725631431404,0.93185729,55997.0,55996.0,0.001]
[1725631431637,0.93185729,55997.0,55964.0,0.02]
[1725631431638,0.357196,55992.0,55983.0,0.357247]
[1725631431876,0.357196,55992.0,55980.0,0.540467]
[1725631431877,0.03895529,55997.0,55980.0,0.1832]
[1725631432120,0.04023113,55996.0,55980.0,0.1832]
[1725631432349,0.1346,55994.0,55974.0,0.1832]
[1725631432586,0.357221,55988.0,55976.0,0.357295]
[1725631432825,0.357225,55987.0,55977.0,0.357287]
[1725631433061,0.357215,55989.0,55981.0,0.357263]
[1725631433297,0.357197,55992.0,55977.0,0.17551096]
[1725631433527,0.357202,55991.0,55977.0,0.17551096]
[1725631433771,0.39806819,55992.0,55982.0,0.357256]
[1725631434004,0.04086919,55992.0,55983.0,0.357247]
[1725631434237,0.04086919,55992.0,55981.0,0.178631]
[1725631434476,0.178619,55985.0,55977.0,0.17551096]
[1725631434741,0.17861,55988.0,55983.0,0.178625]
[1725631434978,0.178623,55984.0,55980.0,0.178632]
[1725631435223,0.357268,55981.0,55969.0,0.1768]
[1725631435490,0.04206582,55981.0,55968.0,0.357342]
[1725631435726,0.04206582,55981.0,55965.0,0.1381]
[1725631435727,0.1756,55995.0,55978.0,0.1381]
[1725631435964,0.04055016,55994.0,55978.0,0.1381]
[1725631436195,0.357245,55984.0,55978.0,0.1381]
[1725631436441,0.357191,55993.0,55978.0,0.1381]
[1725631436682,0.04070968,55992.0,55982.0,0.357256]
[1725631436919,0.39790368,55992.0,55984.0,0.178621]
[1725631437153,0.39790368,55992.0,55986.0,0.178615]
[1725631437407,0.178581,55997.0,55993.0,0.178591]
[1725631437643,0.357136,56001.0,55989.0,0.178606]
[1725631437644,0.178593,55993.0,55989.0,0.178606]
[1725631437901,0.178597,55992.0,55988.0,0.178607]
[1725631438135,0.357177,55995.0,55988.0,0.178607]
[1725631438368,0.03975265,55994.0,55978.0,0.3136]
[1725631438606,0.178614,55987.0,55983.0,0.178623]
[1725631438840,0.21765265,55994.0,55981.0,0.00163]
[1725631439074,0.178606,55990.0,55985.0,0.178618]
[1725631439313,0.357207,55990.0,55981.0,0.358888]
[1725631439549,0.357218,55989.0,55983.0,0.178625]
[1725631439784,0.285821,55990.0,55981.0,0.537517]
[1725631439785,0.178617,55986.0,55981.0,0.537517]
[1725631440011,0.178617,55986.0,55982.0,0.178628]
[1725631440256,0.357223,55988.0,55981.0,0.358888]
[1725631440257,0.357223,55988.0,55981.0,0.00163]
[1725631440517,0.535885,55982.0,55981.0,0.00163]
[1725631440745,1.4731468,55982.0,55981.0,0.00163]
[1725631441453,1.9756038,55982.0,55981.0,0.00163]
[1725631441693,2.4428608,55982.0,55981.0,0.00263]
[1725631441936,2.4428608,55982.0,55959.0,0.70870515]
[1725631441937,0.893495,55960.0,55959.0,0.52650515]
[1725631442174,1.066695,55960.0,55959.0,0.52650515]
[1725631442418,1.066695,55960.0,55945.0,0.67090515]
[1725631442419,0.357413,55958.0,55945.0,0.67090515]
[1725631442656,0.1735,55969.0,55946.0,0.5365703]
[1725631442888,0.178701,55960.0,55947.0,0.357476]
[1725631443167,0.0451785,55968.0,55948.0,0.17908521]
[1725631443387,0.178705,55958.0,55953.0,0.178719]
[1725631443648,0.178716,55955.0,55945.0,0.1444]
[1725631443887,0.0451785,55968.0,55948.0,0.357471]
[1725631444125,0.0451785,55968.0,55955.0,0.1746]
[1725631444359,0.0451785,55968.0,55950.0,0.1693]
[1725631444360,0.357409,55959.0,55950.0,0.1693]
[1725631444596,0.178727,55952.0,55950.0,0.1693]
[1725631444829,0.178712,55956.0,55952.0,0.178722]
[1725631445084,0.0451785,55968.0,55948.0,0.357472]
[1725631445313,0.178713,55956.0,55955.0,0.001]
[1725631445635,0.357391,55962.0,55955.0,0.001]
[1725631445636,0.357408,55959.0,55955.0,0.001]
[1725631445733,0.04549789,55956.0,55945.0,0.3191]
[1725631445964,0.357501,55944.0,55941.0,0.001632]
[1725631446214,0.178756,55942.0,55941.0,0.001632]
[1725631446450,0.536269,55942.0,55941.0,0.001632]
[1725631446917,0.1398,55949.0,55941.0,0.001632]
[1725631447148,0.22459642,55955.0,55950.0,0.004]
[1725631447149,0.178727,55951.0,55950.0,0.004]
[1725631447380,0.3177,55955.0,55941.0,0.001632]
[1725631447381,0.178756,55942.0,55941.0,0.001632]
[1725631447844,0.002,55942.0,55941.0,0.001632]
[1725631448117,0.357449,55952.0,55941.0,0.001632]
[1725631448373,0.22766235,55951.0,55950.0,0.001]
[1725631448602,0.94257235,55951.0,55950.0,0.001]
[1725631448850,0.94257235,55951.0,55941.0,0.001632]
[1725631448851,0.536248,55945.0,55941.0,0.001632]
[1725631449080,0.357494,55945.0,55941.0,0.004632]
[1725631449323,0.703569,55942.0,55941.0,0.004632]
[1725631449564,1.70912914,55942.0,55941.0,0.004632]
[1725631450506,1.39902914,55942.0,55941.0,0.001632]
[1725631450744,0.178756,55942.0,55941.0,0.001632]
[1725631450977,0.893782,55942.0,55941.0,0.001632]
[1725631451205,0.178756,55942.0,55941.0,0.001632]
[1725631451450,0.178756,55942.0,55941.0,0.002632]
[1725631451680,0.191756,55942.0,55941.0,0.002632]
[1725631451922,0.357481,55947.0,55941.0,0.001632]
[1725631452156,0.009,55942.0,55941.0,0.002632]
[1725631452410,0.1739,55957.0,55941.0,0.001632]
[1725631452663,0.357467,55950.0,55941.0,0.001632]
[1725631452911,0.178749,55945.0,55941.0,0.001632]
[1725631453145,0.178756,55942.0,55941.0,0.001632]
[1725631453611,0.178753,55943.0,55941.0,0.001632]
[1725631453837,0.1739,55957.0,55941.0,0.002632]
[1725631454072,0.178743,55947.0,55942.0,0.178755]
[1725631454301,0.178744,55946.0,55942.0,0.178755]
[1725631454793,0.178752,55944.0,55941.0,0.001632]
[1725631455029,0.183753,55943.0,55941.0,0.001632]
[1725631455263,0.14653601,55956.0,55941.0,0.001632]
[1725631455264,0.357486,55947.0,55941.0,0.001632]
[1725631455501,0.536269,55942.0,55941.0,0.001632]
[1725631455752,1.29902914,55942.0,55941.0,0.001632]
[1725631456005,1.29902914,55942.0,55933.0,0.00162]
[1725631456006,0.892828,55934.0,55933.0,0.00162]
[1725631456274,0.62952992,55926.0,55925.0,0.00164]
[1725631456524,1.94262674,55926.0,55925.0,0.00164]
[1725631456767,2.88097674,55926.0,55925.0,1e-06]
[1725631457009,2.88097674,55926.0,55903.0,0.00164]
[1725631457010,1.417664,55912.0,55903.0,0.00164]
[1725631457260,2.45550133,55912.0,55903.0,0.00164]
[1725631457501,2.45550133,55912.0,55904.0,0.70538115]
[1725631457502,0.58796641,55912.0,55904.0,0.70538115]
[1725631457741,0.94567041,55912.0,55903.0,0.00164]
[1725631458470,0.357691,55915.0,55903.0,0.00164]
[1725631458707,0.544556,55912.0,55911.0,0.00262]
[1725631459174,0.186852,55912.0,55911.0,0.00262]
[1725631459413,0.544556,55912.0,55911.0,0.00262]
[1725631459655,0.90226,55912.0,55911.0,0.00262]
[1725631460149,1.30449387,55912.0,55911.0,0.00162]
[1725631460658,0.23838187,55912.0,55911.0,0.00262]
[1725631461020,0.1,55918.0,55911.0,0.00162]
[1725631461198,0.008,55912.0,55911.0,0.00262]
[1725631461464,1.48739387,55912.0,55911.0,0.00162]
[1725631461715,2.22432432,55912.0,55911.0,0.00162]
[1725631461954,1.91255413,55912.0,55911.0,0.00162]
[1725631462207,0.536556,55912.0,55911.0,0.00162]
[1725631462439,0.89426,55912.0,55911.0,0.00162]
[1725631462670,0.536556,55912.0,55911.0,0.00162]
[1725631463152,0.178852,55912.0,55911.0,0.00162]
[1725631463399,0.94678987,55912.0,55911.0,0.00162]
[1725631463638,1.94311679,55912.0,55911.0,0.00262]
[1725631463876,0.89426,55912.0,55911.0,0.00162]
[1725631464381,0.544556,55912.0,55911.0,0.00262]
[1725631464624,0.536556,55912.0,55911.0,0.00162]